[Event "Late-Titled-Tuesday-Blitz-September-12-2023"]
[Site "Chess.com"]
[Date "2023.09.12"]
[Round "3"]
[White "Bodhanas"]
[Black "Perecke"]
[Result "0-1"]
[WhiteElo "1850"]
[BlackElo "2499"]
[TimeControl "180+1"]
[EndTime "14:28:23 PDT"]
[Termination "Perecke won on time"]

1. d4 {[%clk 0:02:59]} 1... d5 {[%clk 0:02:57.9]} 2. Nf3 {[%clk 0:02:58.1]} 2...
Nf6 {[%clk 0:02:57.9]} 3. Bf4 {[%clk 0:02:56]} 3... c5 {[%clk 0:02:56.7]} 4. c3
{[%clk 0:02:50.8]} 4... Nc6 {[%clk 0:02:43.8]} 5. e3 {[%clk 0:02:47.7]} 5... Bf5
{[%clk 0:02:43.1]} 6. Bd3 {[%clk 0:02:39.6]} 6... Bxd3 {[%clk 0:02:39.1]} 7.
Qxd3 {[%clk 0:02:38.5]} 7... Qb6 {[%clk 0:02:40]} 8. Qe2 {[%clk 0:02:30.6]} 8...
e6 {[%clk 0:02:39.6]} 9. O-O {[%clk 0:02:29.7]} 9... Be7 {[%clk 0:02:39.5]} 10.
dxc5 {[%clk 0:02:27]} 10... Bxc5 {[%clk 0:02:37.8]} 11. b4 {[%clk 0:02:23.4]}
11... Be7 {[%clk 0:02:37.9]} 12. Ne5 {[%clk 0:02:22.6]} 12... Ne4 {[%clk
0:02:36]} 13. Nxc6 {[%clk 0:02:19.1]} 13... bxc6 {[%clk 0:02:36.9]} 14. f3
{[%clk 0:02:13.3]} 14... Nd6 {[%clk 0:02:33.4]} 15. Nd2 {[%clk 0:02:11.4]} 15...
O-O {[%clk 0:02:32.5]} 16. Bxd6 {[%clk 0:02:08.9]} 16... Bxd6 {[%clk 0:02:32.6]}
17. a3 {[%clk 0:02:08]} 17... c5 {[%clk 0:02:32.8]} 18. f4 {[%clk 0:01:57.9]}
18... a5 {[%clk 0:02:31.3]} 19. b5 {[%clk 0:01:53.8]} 19... c4 {[%clk
0:02:31.6]} 20. a4 {[%clk 0:01:51.7]} 20... e5 {[%clk 0:02:29.2]} 21. Kh1 {[%clk
0:01:40.4]} 21... e4 {[%clk 0:02:26.9]} 22. Rfd1 {[%clk 0:01:35.4]} 22... Bc5
{[%clk 0:02:24.4]} 23. Nf1 {[%clk 0:01:33.8]} 23... Rad8 {[%clk 0:02:25]} 24.
Rd2 {[%clk 0:01:33]} 24... Rd7 {[%clk 0:02:23.5]} 25. Rad1 {[%clk 0:01:31.2]}
25... Rfd8 {[%clk 0:02:24.2]} 26. h3 {[%clk 0:01:24.5]} 26... f5 {[%clk
0:02:24.3]} 27. Re1 {[%clk 0:01:11.9]} 27... Qf6 {[%clk 0:02:23.7]} 28. Ng3
{[%clk 0:01:05.9]} 28... g6 {[%clk 0:02:22.9]} 29. Rc1 {[%clk 0:01:03.1]} 29...
Kf7 {[%clk 0:02:20.1]} 30. Kh2 {[%clk 0:01:02.3]} 30... Ke6 {[%clk 0:02:18.7]}
31. Kg1 {[%clk 0:00:55]} 31... Kd6 {[%clk 0:02:15]} 32. Nf1 {[%clk 0:00:41.4]}
32... Kc7 {[%clk 0:02:14.4]} 33. g4 {[%clk 0:00:37.7]} 33... fxg4 {[%clk
0:02:08.5]} 34. hxg4 {[%clk 0:00:37.3]} 34... Kb6 {[%clk 0:02:08.9]} 35. Kg2
{[%clk 0:00:34.6]} 35... h5 {[%clk 0:02:08.7]} 36. g5 {[%clk 0:00:33.1]} 36...
Qe6 {[%clk 0:02:08.1]} 37. Nh2 {[%clk 0:00:28.3]} 37... Kb7 {[%clk 0:02:02.3]}
38. Rf1 {[%clk 0:00:26.5]} 38... Qf5 {[%clk 0:01:58.1]} 39. Qf2 {[%clk
0:00:23.1]} 39... Rh7 {[%clk 0:01:54.3]} 40. Re2 {[%clk 0:00:19.8]} 40... h4
{[%clk 0:01:54.2]} 41. Kh1 {[%clk 0:00:19.9]} 41... Rdh8 {[%clk 0:01:47.4]} 42.
Qg2 {[%clk 0:00:19.7]} 42... Qf7 {[%clk 0:01:33.6]} 43. Qg4 {[%clk 0:00:19]}
43... Qg7 {[%clk 0:01:30.4]} 44. f5 {[%clk 0:00:17.6]} 44... gxf5 {[%clk
0:01:26.3]} 45. Qxf5 {[%clk 0:00:17]} 45... Qd7 {[%clk 0:01:21]} 46. Qxd7+
{[%clk 0:00:16]} 46... Rxd7 {[%clk 0:01:21.9]} 47. Ng4 {[%clk 0:00:15.8]} 47...
Rg7 {[%clk 0:01:10.8]} 48. Rf5 {[%clk 0:00:15.6]} 48... Rhg8 {[%clk 0:01:08.1]}
49. Rxd5 {[%clk 0:00:14.6]} 49... Rxg5 {[%clk 0:01:08.3]} 50. Rxg5 {[%clk
0:00:13.6]} 50... Rxg5 {[%clk 0:01:09.2]} 51. Nf2 {[%clk 0:00:13.4]} 51... Re5
{[%clk 0:00:54.4]} 52. Kg2 {[%clk 0:00:12.9]} 52... Kb6 {[%clk 0:00:46.7]} 53.
Kh3 {[%clk 0:00:12.8]} 53... Be7 {[%clk 0:00:45]} 54. Ng4 {[%clk 0:00:11.9]}
54... Rf5 {[%clk 0:00:44.1]} 55. Rf2 {[%clk 0:00:08.4]} 55... Rf3+ {[%clk
0:00:36.2]} 56. Rxf3 {[%clk 0:00:08.2]} 56... exf3 {[%clk 0:00:37.1]} 57. Nh2
{[%clk 0:00:07.8]} 57... Bf6 {[%clk 0:00:35.9]} 58. Nxf3 {[%clk 0:00:07.1]}
58... Bxc3 {[%clk 0:00:36.7]} 59. Kxh4 {[%clk 0:00:07.2]} 59... Bf6+ {[%clk
0:00:33]} 60. Kg4 {[%clk 0:00:06.8]} 60... c3 {[%clk 0:00:33.4]} 61. Ne1 {[%clk
0:00:06.7]} 61... Kc5 {[%clk 0:00:32.6]} 62. Kf3 {[%clk 0:00:07.1]} 62... Kc4
{[%clk 0:00:29.7]} 63. Ke2 {[%clk 0:00:07.4]} 63... Kb3 {[%clk 0:00:25.1]} 64.
Kd3 {[%clk 0:00:07.4]} 64... Kxa4 {[%clk 0:00:24.7]} 65. b6 {[%clk 0:00:07.2]}
65... Be5 {[%clk 0:00:23.6]} 66. Nc2 {[%clk 0:00:06.9]} 66... Kb3 {[%clk
0:00:22.5]} 67. Nd4+ {[%clk 0:00:05.8]} 67... Kb2 {[%clk 0:00:21.5]} 68. Nc2
{[%clk 0:00:04.4]} 68... a4 {[%clk 0:00:21.6]} 69. b7 {[%clk 0:00:03.7]} 69...
Bb8 {[%clk 0:00:19]} 70. e4 {[%clk 0:00:03.1]} 70... Be5 {[%clk 0:00:17.8]} 71.
Ne3 {[%clk 0:00:02.8]} 71... Kb3 {[%clk 0:00:08]} 72. Nc2 {[%clk 0:00:01.3]}
72... Bb8 {[%clk 0:00:07.8]} 0-1

[Event "Late-Titled-Tuesday-Blitz-September-12-2023"]
[Site "Chess.com"]
[Date "2023.09.12"]
[Round "3"]
[White "GoltsevDmitry2000"]
[Black "Mindhunter08"]
[Result "1-0"]
[WhiteElo "2635"]
[BlackElo "2446"]
[TimeControl "180+1"]
[EndTime "14:28:26 PDT"]
[Termination "GoltsevDmitry2000 won by checkmate"]

1. e4 {[%clk 0:02:59.7]} 1... e5 {[%clk 0:02:58.1]} 2. Nf3 {[%clk 0:03:00]} 2...
Nc6 {[%clk 0:02:57.7]} 3. Bb5 {[%clk 0:03:00.6]} 3... a6 {[%clk 0:02:57.6]} 4.
Ba4 {[%clk 0:03:00.7]} 4... Nf6 {[%clk 0:02:52.3]} 5. O-O {[%clk 0:03:00.6]}
5... Be7 {[%clk 0:02:52.7]} 6. Re1 {[%clk 0:03:00.2]} 6... b5 {[%clk 0:02:53.3]}
7. Bb3 {[%clk 0:03:00.1]} 7... d6 {[%clk 0:02:54.2]} 8. c3 {[%clk 0:02:59.9]}
8... O-O {[%clk 0:02:54.7]} 9. h3 {[%clk 0:03:00]} 9... Nb8 {[%clk 0:02:55.2]}
10. d4 {[%clk 0:03:00.4]} 10... Nbd7 {[%clk 0:02:55.9]} 11. Nbd2 {[%clk
0:03:00.1]} 11... Bb7 {[%clk 0:02:56.6]} 12. a4 {[%clk 0:02:49.1]} 12... c5
{[%clk 0:02:56.5]} 13. d5 {[%clk 0:02:48.5]} 13... c4 {[%clk 0:02:56.7]} 14. Bc2
{[%clk 0:02:48.1]} 14... Nc5 {[%clk 0:02:57.4]} 15. Nf1 {[%clk 0:02:44.4]} 15...
Re8 {[%clk 0:02:55]} 16. Ng3 {[%clk 0:02:42.7]} 16... g6 {[%clk 0:02:49.6]} 17.
Ng5 {[%clk 0:02:34.6]} 17... Nxd5 {[%clk 0:02:40.3]} 18. Nxh7 {[%clk 0:02:24.8]}
18... Nxc3 {[%clk 0:01:18.9]} 19. bxc3 {[%clk 0:02:24.3]} 19... Kxh7 {[%clk
0:01:18.7]} 20. axb5 {[%clk 0:02:14.9]} 20... axb5 {[%clk 0:01:19.6]} 21. Rb1
{[%clk 0:02:15.5]} 21... Bc6 {[%clk 0:01:15.1]} 22. Qf3 {[%clk 0:02:10.3]} 22...
Rf8 {[%clk 0:01:07.1]} 23. Qe3 {[%clk 0:01:59.3]} 23... Rh8 {[%clk 0:00:59.6]}
24. Rf1 {[%clk 0:01:50.9]} 24... Ne6 {[%clk 0:00:59.3]} 25. Qf3 {[%clk
0:01:48.1]} 25... Rf8 {[%clk 0:00:54.7]} 26. Qg4 {[%clk 0:01:47.1]} 26... Bg5
{[%clk 0:00:52.1]} 27. Be3 {[%clk 0:01:36.4]} 27... Bxe3 {[%clk 0:00:47.6]} 28.
fxe3 {[%clk 0:01:36]} 28... Qg5 {[%clk 0:00:48.2]} 29. Qf3 {[%clk 0:01:33]}
29... Nc5 {[%clk 0:00:45.6]} 30. Rbd1 {[%clk 0:01:30.7]} 30... Rad8 {[%clk
0:00:41.3]} 31. h4 {[%clk 0:01:27.8]} 31... Qxh4 {[%clk 0:00:34.7]} 32. Kf2
{[%clk 0:01:27.3]} 32... Kg7 {[%clk 0:00:28.2]} 33. Ke2 {[%clk 0:01:21]} 33...
Ne6 {[%clk 0:00:18.9]} 34. Rh1 {[%clk 0:01:19.4]} 34... Qg5 {[%clk 0:00:15.8]}
35. Rdf1 {[%clk 0:01:19.3]} 35... f6 {[%clk 0:00:12.5]} 36. Rh3 {[%clk
0:01:18.2]} 36... Rh8 {[%clk 0:00:12.6]} 37. Nf5+ {[%clk 0:01:17.3]} 37... Kf7
{[%clk 0:00:06.1]} 38. Nxd6+ {[%clk 0:01:16.7]} 38... Rxd6 {[%clk 0:00:05.8]}
39. Rxh8 {[%clk 0:01:16]} 39... Kg7 {[%clk 0:00:05.7]} 40. Rh3 {[%clk
0:01:12.8]} 40... Nc5 {[%clk 0:00:03.7]} 41. Rfh1 {[%clk 0:01:11.3]} 41... Nd3
{[%clk 0:00:02.9]} 42. Rh7+ {[%clk 0:01:11]} 42... Kf8 {[%clk 0:00:03.2]} 43.
Rh8+ {[%clk 0:01:11.1]} 43... Ke7 {[%clk 0:00:03.8]} 44. R1h7+ {[%clk
0:01:11.6]} 44... Ke6 {[%clk 0:00:04.5]} 45. Rf8 {[%clk 0:00:54.2]} 45... f5
{[%clk 0:00:04.1]} 46. exf5+ {[%clk 0:00:22.4]} 46... gxf5 {[%clk 0:00:04.4]}
47. Qh3 {[%clk 0:00:12.5]} 47... Nc1+ {[%clk 0:00:04.6]} 48. Kf1 {[%clk
0:00:12]} 48... Be4 {[%clk 0:00:03.2]} 49. Bxe4 {[%clk 0:00:07.7]} 49... Rd1+
{[%clk 0:00:03.9]} 50. Kf2 {[%clk 0:00:08.2]} 50... Rd2+ {[%clk 0:00:04.8]} 51.
Kg1 {[%clk 0:00:08.8]} 51... Ne2+ {[%clk 0:00:03.3]} 52. Kh2 {[%clk 0:00:09.1]}
52... Nxc3 {[%clk 0:00:02.8]} 53. Bxf5+ {[%clk 0:00:07.8]} 53... Kd5 {[%clk
0:00:01.8]} 54. Rd8+ {[%clk 0:00:08]} 54... Kc5 {[%clk 0:00:02.4]} 55. Rxd2
{[%clk 0:00:08.1]} 55... e4 {[%clk 0:00:03]} 56. Rh5 {[%clk 0:00:07.5]} 56...
Qf6 {[%clk 0:00:03.2]} 57. Bxe4+ {[%clk 0:00:07.8]} 57... Kb4 {[%clk 0:00:03]}
58. Bf3 {[%clk 0:00:07.4]} 58... Qe7 {[%clk 0:00:02.4]} 59. Qf5 {[%clk
0:00:07.4]} 59... Qxe3 {[%clk 0:00:02.4]} 60. Rd6 {[%clk 0:00:04.7]} 60... Qf2
{[%clk 0:00:01.5]} 61. Qc5+ {[%clk 0:00:04.2]} 61... Qxc5 {[%clk 0:00:01.5]} 62.
Rxc5 {[%clk 0:00:05.1]} 62... Kxc5 {[%clk 0:00:02.4]} 63. Rc6+ {[%clk
0:00:05.9]} 63... Kd4 {[%clk 0:00:02.5]} 64. g4 {[%clk 0:00:06.6]} 64... b4
{[%clk 0:00:03]} 65. g5 {[%clk 0:00:07.2]} 65... b3 {[%clk 0:00:03.6]} 66. Rb6
{[%clk 0:00:07.3]} 66... Kc5 {[%clk 0:00:03.9]} 67. Rb8 {[%clk 0:00:07.5]} 67...
Nb5 {[%clk 0:00:03.9]} 68. g6 {[%clk 0:00:07.3]} 68... c3 {[%clk 0:00:03.9]} 69.
g7 {[%clk 0:00:06.9]} 69... c2 {[%clk 0:00:03.3]} 70. g8=Q {[%clk 0:00:06.7]}
70... c1=Q {[%clk 0:00:04]} 71. Rc8+ {[%clk 0:00:07.2]} 71... Kb4 {[%clk
0:00:03.1]} 72. Rxc1 {[%clk 0:00:07.7]} 72... b2 {[%clk 0:00:04]} 73. Rb1 {[%clk
0:00:07.6]} 73... Nc3 {[%clk 0:00:04.9]} 74. Rxb2+ {[%clk 0:00:07.4]} 74... Ka3
{[%clk 0:00:05.8]} 75. Qb3# {[%clk 0:00:07.2]} 1-0

[Event "Late-Titled-Tuesday-Blitz-September-12-2023"]
[Site "Chess.com"]
[Date "2023.09.12"]
[Round "3"]
[White "Orest_Vovk"]
[Black "Dr_crypt"]
[Result "1-0"]
[WhiteElo "2596"]
[BlackElo "2424"]
[TimeControl "180+1"]
[EndTime "14:28:38 PDT"]
[Termination "Orest_Vovk won on time"]

1. g4 {[%clk 0:02:58.9]} 1... e5 {[%clk 0:02:51.2]} 2. g5 {[%clk 0:02:58.7]}
2... Qxg5 {[%clk 0:02:48.3]} 3. d4 {[%clk 0:02:56.4]} 3... Qe7 {[%clk
0:02:46.9]} 4. dxe5 {[%clk 0:02:56.5]} 4... Qxe5 {[%clk 0:02:46.6]} 5. Nf3
{[%clk 0:02:57]} 5... Qa5+ {[%clk 0:02:43.6]} 6. Bd2 {[%clk 0:02:54.8]} 6... Bb4
{[%clk 0:02:43.3]} 7. Nc3 {[%clk 0:02:53.9]} 7... c6 {[%clk 0:02:39]} 8. Rg1
{[%clk 0:02:51.2]} 8... g6 {[%clk 0:02:38]} 9. a3 {[%clk 0:02:48]} 9... Be7
{[%clk 0:02:35.7]} 10. Ne4 {[%clk 0:02:42.2]} 10... Qd8 {[%clk 0:02:33.7]} 11.
Bc3 {[%clk 0:02:41]} 11... Nf6 {[%clk 0:02:25]} 12. Qd4 {[%clk 0:02:22.7]} 12...
Nxe4 {[%clk 0:02:06.9]} 13. Qxh8+ {[%clk 0:02:18.3]} 13... Bf8 {[%clk
0:02:07.8]} 14. Bg7 {[%clk 0:02:02.2]} 14... Qe7 {[%clk 0:02:06.9]} 15. Qxh7
{[%clk 0:01:26.7]} 15... Bxg7 {[%clk 0:02:04.2]} 16. Qxg7 {[%clk 0:01:25.4]}
16... d5 {[%clk 0:02:04.3]} 17. Qg8+ {[%clk 0:01:14.7]} 17... Qf8 {[%clk
0:01:58.3]} 18. Qxf8+ {[%clk 0:01:13.9]} 18... Kxf8 {[%clk 0:01:58.8]} 19. Ng5
{[%clk 0:01:12.7]} 19... Nd6 {[%clk 0:01:54.8]} 20. O-O-O {[%clk 0:01:07.5]}
20... Nd7 {[%clk 0:01:50.7]} 21. e4 {[%clk 0:00:59.1]} 21... Nxe4 {[%clk
0:01:49.2]} 22. Nxe4 {[%clk 0:00:56.6]} 22... dxe4 {[%clk 0:01:49.9]} 23. Bh3
{[%clk 0:00:55.3]} 23... Ke7 {[%clk 0:01:44.9]} 24. Rge1 {[%clk 0:00:51]} 24...
Nf6 {[%clk 0:01:40.4]} 25. Bxc8 {[%clk 0:00:48.9]} 25... Rxc8 {[%clk 0:01:40.8]}
26. f3 {[%clk 0:00:48.8]} 26... Rh8 {[%clk 0:01:39.9]} 27. Rd2 {[%clk
0:00:42.4]} 27... Rh4 {[%clk 0:01:25.5]} 28. Rde2 {[%clk 0:00:41.7]} 28... Ke6
{[%clk 0:01:24.9]} 29. fxe4 {[%clk 0:00:41.5]} 29... Ke5 {[%clk 0:01:24.7]} 30.
Rf1 {[%clk 0:00:40]} 30... Ke6 {[%clk 0:00:23.7]} 31. Ref2 {[%clk 0:00:30.2]}
31... Ng4 {[%clk 0:00:23.8]} 32. Rxf7 {[%clk 0:00:28.4]} 32... Rxh2 {[%clk
0:00:20.7]} 33. Kb1 {[%clk 0:00:20]} 33... Ne3 {[%clk 0:00:14]} 34. R1f6+ {[%clk
0:00:19.1]} 34... Ke5 {[%clk 0:00:14.9]} 35. Rxg6 {[%clk 0:00:19.2]} 35... Rh1+
{[%clk 0:00:12.4]} 36. Ka2 {[%clk 0:00:18.8]} 36... Nxc2 {[%clk 0:00:13.3]} 37.
Re7+ {[%clk 0:00:17.2]} 37... Kd4 {[%clk 0:00:13.4]} 38. Rxb7 {[%clk 0:00:18.1]}
38... c5 {[%clk 0:00:13.5]} 39. Rd6+ {[%clk 0:00:15.9]} 39... Ke3 {[%clk
0:00:13.8]} 40. Rb3+ {[%clk 0:00:14.9]} 40... Kf4 {[%clk 0:00:11.2]} 41. Rc3
{[%clk 0:00:14.2]} 41... Ra1+ {[%clk 0:00:08.4]} 42. Kb3 {[%clk 0:00:13.7]}
42... Nd4+ {[%clk 0:00:08.7]} 43. Kc4 {[%clk 0:00:12.6]} 43... Ne2 {[%clk
0:00:08.3]} 44. Rh3 {[%clk 0:00:09.9]} 44... Rc1+ {[%clk 0:00:08.4]} 45. Kb5
{[%clk 0:00:09.6]} 45... Nd4+ {[%clk 0:00:08.8]} 46. Ka6 {[%clk 0:00:09.4]}
46... Kxe4 {[%clk 0:00:08.4]} 47. Kxa7 {[%clk 0:00:08.7]} 47... Rc2 {[%clk
0:00:08.2]} 48. Rb6 {[%clk 0:00:07.5]} 48... Kd5 {[%clk 0:00:07.7]} 49. Rh5+
{[%clk 0:00:07.3]} 49... Kc4 {[%clk 0:00:07.5]} 50. a4 {[%clk 0:00:07.7]} 50...
Rc1 {[%clk 0:00:07.2]} 51. a5 {[%clk 0:00:07.9]} 51... Ra1 {[%clk 0:00:07.6]}
52. a6 {[%clk 0:00:08]} 52... Ra5 {[%clk 0:00:03.6]} 53. Kb7 {[%clk 0:00:07.1]}
53... Nb5 {[%clk 0:00:02]} 54. Rh4+ {[%clk 0:00:06.8]} 54... Kd5 {[%clk
0:00:01.5]} 55. Rh5+ {[%clk 0:00:06.7]} 55... Kc4 {[%clk 0:00:01.6]} 56. Rg5
{[%clk 0:00:06.4]} 56... Kd4 {[%clk 0:00:01.9]} 57. Rg4+ {[%clk 0:00:06.4]}
57... Kd5 {[%clk 0:00:01.8]} 58. Rh4 {[%clk 0:00:05]} 58... Nd6+ {[%clk
0:00:02.3]} 59. Kc7 {[%clk 0:00:03.1]} 59... Nb5+ {[%clk 0:00:03]} 60. Kb8
{[%clk 0:00:03.5]} 60... Nd6 {[%clk 0:00:02.6]} 61. Rh5+ {[%clk 0:00:03.8]}
61... Kc4 {[%clk 0:00:02.8]} 62. Rxd6 {[%clk 0:00:03]} 62... Rb5+ {[%clk
0:00:03.1]} 63. Kc7 {[%clk 0:00:03.2]} 63... Ra5 {[%clk 0:00:03.2]} 64. Rc6
{[%clk 0:00:04.1]} 64... Kb5 {[%clk 0:00:03.6]} 65. Rhxc5+ {[%clk 0:00:05]}
65... Kb4 {[%clk 0:00:04.2]} 66. Rxa5 {[%clk 0:00:05.3]} 66... Kb3 {[%clk
0:00:04.8]} 67. a7 {[%clk 0:00:06.2]} 67... Kxb2 {[%clk 0:00:05.6]} 68. a8=Q
{[%clk 0:00:05.9]} 1-0

[Event "Late-Titled-Tuesday-Blitz-September-12-2023"]
[Site "Chess.com"]
[Date "2023.09.12"]
[Round "3"]
[White "BigAl"]
[Black "checkmatequen"]
[Result "1-0"]
[WhiteElo "2547"]
[BlackElo "2354"]
[TimeControl "180+1"]
[EndTime "14:28:45 PDT"]
[Termination "BigAl won on time"]

1. Nf3 {[%clk 0:03:00]} 1... Nf6 {[%clk 0:02:58.2]} 2. g3 {[%clk 0:03:00.2]}
2... d5 {[%clk 0:02:53.3]} 3. Bg2 {[%clk 0:03:01]} 3... Bg4 {[%clk 0:02:45.7]}
4. O-O {[%clk 0:03:01.1]} 4... c6 {[%clk 0:02:46.2]} 5. d3 {[%clk 0:03:00.9]}
5... Nbd7 {[%clk 0:02:45.3]} 6. c4 {[%clk 0:03:01.3]} 6... e5 {[%clk 0:02:44]}
7. cxd5 {[%clk 0:02:54]} 7... cxd5 {[%clk 0:02:43.8]} 8. Nc3 {[%clk 0:02:40.4]}
8... Bd6 {[%clk 0:02:38]} 9. e4 {[%clk 0:02:37.4]} 9... d4 {[%clk 0:02:35.2]}
10. Nb5 {[%clk 0:02:26.4]} 10... Bb8 {[%clk 0:02:34.2]} 11. Bd2 {[%clk 0:02:17]}
11... O-O {[%clk 0:02:21.9]} 12. h3 {[%clk 0:02:11.2]} 12... Bxf3 {[%clk
0:02:18]} 13. Bxf3 {[%clk 0:02:11.5]} 13... a6 {[%clk 0:02:18.3]} 14. Na3 {[%clk
0:02:12.1]} 14... b5 {[%clk 0:02:18.8]} 15. Bb4 {[%clk 0:02:00.2]} 15... Re8
{[%clk 0:02:17.5]} 16. Rc1 {[%clk 0:01:52.3]} 16... a5 {[%clk 0:02:16]} 17. Bd2
{[%clk 0:01:52.5]} 17... Qb6 {[%clk 0:02:13.8]} 18. Qb3 {[%clk 0:01:43.9]} 18...
Nc5 {[%clk 0:02:03.5]} 19. Qc2 {[%clk 0:01:14.2]} 19... Bd6 {[%clk 0:01:59.6]}
20. Be2 {[%clk 0:01:07.6]} 20... Rac8 {[%clk 0:01:50.5]} 21. Kg2 {[%clk
0:01:00.1]} 21... Qb7 {[%clk 0:01:27]} 22. Qb1 {[%clk 0:01:00.3]} 22... Ncxe4
{[%clk 0:01:23.6]} 23. dxe4 {[%clk 0:00:58.7]} 23... Nxe4 {[%clk 0:01:24.5]} 24.
Bf3 {[%clk 0:00:57.1]} 24... f5 {[%clk 0:01:19.5]} 25. Rfe1 {[%clk 0:00:38.8]}
25... Rxc1 {[%clk 0:01:16.3]} 26. Bxc1 {[%clk 0:00:39.3]} 26... Rc8 {[%clk
0:01:10.4]} 27. Qd3 {[%clk 0:00:28.2]} 27... b4 {[%clk 0:00:59]} 28. Nc4 {[%clk
0:00:28.9]} 28... Qa6 {[%clk 0:00:56.6]} 29. Nxe5 {[%clk 0:00:23.5]} 29... Qxd3
{[%clk 0:00:39.2]} 30. Nxd3 {[%clk 0:00:24.4]} 30... Rc2 {[%clk 0:00:39.5]} 31.
Bf4 {[%clk 0:00:21.9]} 31... Bxf4 {[%clk 0:00:37.1]} 32. gxf4 {[%clk 0:00:22.8]}
32... Nd2 {[%clk 0:00:32.4]} 33. Re7 {[%clk 0:00:17.5]} 33... Nxf3 {[%clk
0:00:20.6]} 34. Kxf3 {[%clk 0:00:18.4]} 34... Rd2 {[%clk 0:00:21.2]} 35. Ne5
{[%clk 0:00:19.3]} 35... Kf8 {[%clk 0:00:20.2]} 36. Ra7 {[%clk 0:00:18.8]} 36...
Rxb2 {[%clk 0:00:19.9]} 37. Rxa5 {[%clk 0:00:19.1]} 37... b3 {[%clk 0:00:19.8]}
38. axb3 {[%clk 0:00:19.4]} 38... Rxb3+ {[%clk 0:00:20.7]} 39. Kg2 {[%clk
0:00:20]} 39... Ke7 {[%clk 0:00:14.6]} 40. Ra7+ {[%clk 0:00:18]} 40... Ke6
{[%clk 0:00:12.5]} 41. Rxg7 {[%clk 0:00:16.3]} 41... d3 {[%clk 0:00:12.9]} 42.
Rd7 {[%clk 0:00:15.6]} 42... Rb4 {[%clk 0:00:13]} 43. Rxd3 {[%clk 0:00:14.5]}
43... Rxf4 {[%clk 0:00:13.2]} 44. Nf3 {[%clk 0:00:14.2]} 44... Kf6 {[%clk
0:00:11]} 45. Ra3 {[%clk 0:00:13.6]} 45... Re4 {[%clk 0:00:09.1]} 46. Ra6+
{[%clk 0:00:13.4]} 46... Kg7 {[%clk 0:00:08.2]} 47. Kg3 {[%clk 0:00:13.3]} 47...
h6 {[%clk 0:00:07.1]} 48. h4 {[%clk 0:00:13]} 48... Rg4+ {[%clk 0:00:06.2]} 49.
Kh3 {[%clk 0:00:12.7]} 49... Rf4 {[%clk 0:00:06.7]} 50. Kg2 {[%clk 0:00:12.2]}
50... Rg4+ {[%clk 0:00:06.6]} 51. Kf1 {[%clk 0:00:12.5]} 51... Rf4 {[%clk
0:00:07.1]} 52. Ke2 {[%clk 0:00:12.7]} 52... Re4+ {[%clk 0:00:07.3]} 53. Kd3
{[%clk 0:00:13.1]} 53... Rf4 {[%clk 0:00:08.2]} 54. Ke3 {[%clk 0:00:13.3]} 54...
Re4+ {[%clk 0:00:08.4]} 55. Kd3 {[%clk 0:00:13.5]} 55... Rf4 {[%clk 0:00:09.3]}
56. Ke2 {[%clk 0:00:10.3]} 56... Re4+ {[%clk 0:00:09.4]} 57. Kf1 {[%clk
0:00:09.7]} 57... Rf4 {[%clk 0:00:10.3]} 58. Ra3 {[%clk 0:00:10.4]} 58... Kg6
{[%clk 0:00:09.2]} 59. Kg2 {[%clk 0:00:10.4]} 59... Rg4+ {[%clk 0:00:08.1]} 60.
Kh3 {[%clk 0:00:10.3]} 60... Rf4 {[%clk 0:00:08.7]} 61. Re3 {[%clk 0:00:09.9]}
61... Kh5 {[%clk 0:00:07.9]} 62. Kg2 {[%clk 0:00:08.9]} 62... Rg4+ {[%clk
0:00:07.7]} 63. Kf1 {[%clk 0:00:09.3]} 63... Rf4 {[%clk 0:00:08.3]} 64. Ke2
{[%clk 0:00:09.3]} 64... Ra4 {[%clk 0:00:02]} 65. Re5 {[%clk 0:00:09.4]} 65...
Re4+ {[%clk 0:00:01.1]} 66. Rxe4 {[%clk 0:00:09.2]} 66... fxe4 {[%clk 0:00:02]}
67. Nd2 {[%clk 0:00:09.5]} 67... Kxh4 {[%clk 0:00:02.3]} 68. Nxe4 {[%clk
0:00:09.8]} 68... Kg4 {[%clk 0:00:02.5]} 69. Ke3 {[%clk 0:00:09.6]} 69... h5
{[%clk 0:00:02.7]} 70. Nf6+ {[%clk 0:00:09.8]} 70... Kg5 {[%clk 0:00:02.5]} 71.
Ne4+ {[%clk 0:00:09]} 71... Kg4 {[%clk 0:00:02.2]} 72. f3+ {[%clk 0:00:09.1]}
72... Kf5 {[%clk 0:00:02.2]} 73. Ng3+ {[%clk 0:00:09.1]} 73... Kg5 {[%clk
0:00:02.1]} 74. Kf2 {[%clk 0:00:08.6]} 74... h4 {[%clk 0:00:01.7]} 75. Ne4+
{[%clk 0:00:09.3]} 75... Kf4 {[%clk 0:00:02]} 76. Nf6 {[%clk 0:00:08.8]} 76...
h3 {[%clk 0:00:01.4]} 77. Ng4 {[%clk 0:00:09.5]} 1-0